bitfinex/quotes_SOLUSD_20250226
["timestamp","ask_amount","ask_price","bid_price","bid_amount"]
[1740599266900,20.0,132.31,132.29,0.063]
[1740599267096,21.98440761,132.31,132.29,0.063]
[1740599267489,20.0,132.31,132.29,0.063]
[1740599268306,20.28432314,132.3,132.29,0.063]
[1740599269907,22.26949552,132.3,132.29,0.063]
[1740599270291,23.26949552,132.3,132.29,0.063]
[1740599270691,22.26949552,132.3,132.29,0.063]
[1740599271109,23.26949552,132.3,132.29,0.063]
[1740599271688,3.26949552,132.3,132.29,0.063]
[1740599271898,1.0,132.29,132.28,0.063]
[1740599272211,1.0,132.28,132.26,0.063]
[1740599272401,2.9856115,132.27,132.26,0.063]
[1740599272597,3.12777307,132.27,132.26,0.063]
[1740599273098,2.12777307,132.27,132.26,0.063]
[1740599273287,2.12777307,132.27,132.23,0.063]
[1740599273288,0.14216157,132.24,132.23,0.063]
[1740599273496,1.14216157,132.24,132.23,0.063]
[1740599274109,0.14216157,132.24,132.23,0.063]
[1740599275309,0.28432314,132.24,132.23,0.063]
[1740599275506,1.28432314,132.24,132.23,0.063]
[1740599275710,10.72432314,132.24,132.23,0.063]
[1740599276094,10.86648471,132.24,132.23,0.063]
[1740599276320,12.86648471,132.24,132.23,0.063]
[1740599276519,11.86648471,132.24,132.23,0.063]
[1740599276904,10.86648471,132.24,132.23,0.063]
[1740599277103,11.86648471,132.24,132.23,0.063]
[1740599277712,10.86648471,132.24,132.23,0.063]
[1740599277898,10.72432314,132.24,132.23,0.063]
[1740599278094,0.28432314,132.24,132.23,0.063]
[1740599278499,1.0,132.26,132.23,0.063]
[1740599278704,1.28432314,132.24,132.23,0.063]
[1740599278906,0.28432314,132.24,132.23,0.063]
[1740599279104,1.28432314,132.24,132.23,0.063]
[1740599279298,1.98555946,132.25,132.23,0.063]
[1740599279506,20.0,132.24,132.23,0.063]
[1740599280704,21.98592765,132.24,132.23,0.063]
[1740599280900,20.0,132.24,132.23,0.063]
[1740599281108,1.98592378,132.27,132.23,77.9981371]
[1740599281319,10.44,132.28,132.23,77.9981371]
[1740599281503,20.0,132.25,132.23,77.9981371]
[1740599281703,8.2434,132.29,132.23,136.863]
[1740599282027,0.14216157,132.27,132.23,136.863]
[1740599282221,0.14216157,132.27,132.23,219.263]
[1740599282521,10.44,132.31,132.23,219.263]
[1740599282729,1.984807,132.3,132.23,219.263]
[1740599282915,20.0,132.28,132.23,219.263]
[1740599283108,1.984807,132.3,132.23,219.263]
[1740599283525,1.98486765,132.3,132.23,219.263]
[1740599283700,20.28432314,132.28,132.23,82.463]
[1740599283904,20.0,132.27,132.23,82.463]
[1740599284823,22.26963684,132.26,132.23,0.063]
[1740599286021,2.26963684,132.26,132.23,0.063]
[1740599286223,20.14216157,132.24,132.23,0.063]
[1740599286428,22.12814742,132.24,132.23,0.063]
[1740599286644,19.99904742,132.24,132.23,0.063]
[1740599287115,1.0,132.22,132.19,0.063]
[1740599287319,1.98644014,132.21,132.19,0.063]
[1740599287506,85.88644014,132.21,132.19,0.063]
[1740599287707,84.88644014,132.21,132.19,0.063]
[1740599288110,83.9,132.2,132.19,0.063]
[1740599288423,9.9084,132.16,132.15,0.063]
[1740599288737,22.3160835,132.16,132.15,0.063]
[1740599288923,2.14216157,132.15,132.09,0.063]
[1740599289223,1.14216157,132.13,132.09,0.063]
[1740599289424,0.14216157,132.11,132.09,0.063]
[1740599289805,1.9875818,132.15,132.09,0.063]
[1740599290010,1.0,132.18,132.09,219.263]
[1740599290011,1.98717797,132.18,132.09,219.263]
[1740599290214,6.3472,132.2,132.09,219.263]
[1740599290412,12.40672653,132.23,132.09,219.263]
[1740599290718,0.14216157,132.22,132.09,219.263]
[1740599290916,10.42,132.23,132.12,20.0]
[1740599291229,6.3472,132.25,132.13,10.42]
[1740599291529,6.6229,132.3,132.16,20.0]
[1740599291710,17.0429,132.3,132.17,7.9128]
[1740599291907,1.98504128,132.29,132.17,7.9128]
[1740599292106,2.98504128,132.29,132.17,227.1128]
[1740599292327,20.0,132.27,132.17,227.1128]
[1740599292516,0.28432314,132.26,132.17,227.1128]
[1740599292722,21.98563564,132.27,132.17,227.1128]
[1740599292723,1.98567752,132.25,132.17,227.1128]
[1740599292917,21.98567752,132.25,132.13,346.7]
[1740599293126,0.28432314,132.24,132.13,346.7]
[1740599293343,0.14216157,132.22,132.13,346.7]
[1740599293542,0.28432314,132.22,132.13,346.7]
[1740599293718,0.28432314,132.21,132.13,346.7]
[1740599294217,0.28432314,132.23,132.13,346.7]
[1740599294536,0.28432314,132.21,132.13,346.7]
[1740599295028,1.98641118,132.2,132.09,219.263]
[1740599295232,0.28432314,132.19,132.09,219.263]
[1740599295535,0.14216157,132.17,132.09,219.263]
[1740599296320,0.14216157,132.18,132.09,219.263]
[1740599296717,1.98687817,132.17,132.09,219.263]
[1740599296923,0.14216157,132.16,132.09,219.263]
[1740599297729,0.28432314,132.14,132.09,219.263]
[1740599298438,0.28432314,132.17,132.09,219.263]
[1740599298656,0.28432314,132.16,132.09,219.263]
[1740599298819,0.14216157,132.16,132.09,219.263]
[1740599299017,2.12896938,132.16,132.09,219.263]
[1740599299248,0.14216157,132.15,132.09,219.263]
[1740599299618,0.14216157,132.14,132.09,82.463]
[1740599299822,20.14216157,132.14,132.09,82.463]
[1740599300618,0.14216157,132.13,132.09,82.463]
[1740599300934,0.14216157,132.11,132.09,0.063]
[1740599301148,20.14216157,132.1,132.09,0.063]
[1740599301817,84.8876835,132.12,132.09,0.063]
[1740599301818,82.9,132.12,132.09,0.063]
[1740599302019,1.98763229,132.15,132.09,82.463]
[1740599302736,93.32,132.16,132.09,82.463]
[1740599303121,1.6538,132.18,132.09,219.263]
[1740599303931,1.0,132.16,132.09,82.463]
[1740599304117,0.14216157,132.14,132.09,82.463]
[1740599304322,0.14216157,132.12,132.09,82.463]
[1740599305236,1.98755864,132.14,132.09,82.463]
[1740599305541,0.14216157,132.11,132.09,82.463]
[1740599307343,0.03,132.15,132.09,219.263]
[1740599307644,0.28432314,132.14,132.09,219.263]
[1740599309029,0.14216157,132.12,132.09,219.263]
[1740599309224,0.14216157,132.12,132.09,0.063]
[1740599309545,0.14216157,132.1,132.09,0.063]
[1740599310143,84.04216157,132.1,132.09,0.063]
[1740599310442,85.04216157,132.1,132.09,0.063]
[1740599311430,86.63026157,132.1,132.09,0.063]
[1740599311743,85.63026157,132.1,132.09,0.063]
[1740599311953,1.73026157,132.1,132.09,0.063]
[1740599312128,8.2443835,132.11,132.09,0.063]
[1740599312621,10.42,132.13,132.09,0.063]
[1740599312825,12.40757075,132.13,132.09,0.063]
[1740599313145,21.0,132.11,132.09,0.063]
[1740599313340,21.0,132.11,132.05,82.463]
[1740599313341,1.0,132.06,131.91,0.063]
[1740599313538,7.68448471,131.92,131.91,0.063]
[1740599313739,19.08448471,131.92,131.91,0.063]
[1740599313941,0.42648471,131.85,131.84,0.063]
[1740599314238,12.81416821,131.85,131.84,0.063]
[1740599314748,2.41416821,131.85,131.84,0.063]
[1740599315249,0.42648471,131.84,131.83,0.063]
[1740599315743,1.42648471,131.84,131.83,0.063]
[1740599315944,0.42648471,131.84,131.83,0.063]
[1740599318649,2.14216157,131.83,131.82,0.063]
[1740599318830,4.12984507,131.83,131.82,0.063]
[1740599319550,2.12984507,131.83,131.82,0.063]
[1740599319787,2.9876835,131.85,131.82,0.063]
[1740599320249,0.14216157,131.84,131.82,0.063]
[1740599320422,2.12984507,131.83,131.82,0.063]
[1740599320629,1.9876835,131.84,131.82,0.063]
[1740599320879,1.9876835,131.87,131.82,0.063]
[1740599321232,2.9876835,131.87,131.82,0.063]
[1740599321660,1.9876835,131.87,131.82,0.063]
[1740599322369,0.28432314,131.84,131.82,0.063]
[1740599322538,2.27200664,131.84,131.82,0.063]
[1740599323053,1.9876835,131.84,131.82,0.063]
[1740599323262,0.28432314,131.83,131.82,0.063]
[1740599325146,0.28432314,131.83,131.8,1.9712629]
[1740599325352,0.28432314,131.83,131.8,84.3712629]
[1740599325548,0.28432314,131.84,131.8,84.3712629]
[1740599326050,0.14216157,131.84,131.8,84.3712629]
[1740599327455,1.9876835,131.87,131.8,221.1712629]
[1740599327652,1.9876835,131.88,131.8,221.1712629]
[1740599328050,10.42,131.9,131.8,221.1712629]
[1740599328250,1.9876835,131.89,131.8,138.7712629]
[1740599328455,1.9876835,131.89,131.8,221.1712629]
[1740599329175,1.9876835,131.9,131.8,221.1712629]
[1740599329765,20.0,131.88,131.8,221.1712629]
[1740599330064,1.9876835,131.87,131.8,221.2012629]
[1740599330563,2.9876835,131.87,131.8,84.4012629]
[1740599330779,2.9876835,131.87,131.8,2.0012629]
[1740599330940,1.9876835,131.87,131.8,2.0012629]
[1740599331141,0.14216157,131.86,131.8,2.0012629]
[1740599331643,0.14216157,131.85,131.8,221.2012629]
[1740599333480,0.14216157,131.83,131.8,221.2012629]
[1740599333765,0.14216157,131.83,131.8,84.4012629]
[1740599334366,0.14216157,131.86,131.8,84.4012629]
[1740599334566,0.14216157,131.84,131.8,84.4012629]
[1740599334741,1.9876835,131.89,131.8,84.4012629]
[1740599335052,20.0,131.88,131.8,221.2012629]
[1740599335253,1.9876835,131.87,131.8,221.2012629]
[1740599336048,2.0506835,131.9,131.8,221.2012629]
[1740599336767,20.0,131.88,131.8,221.2012629]
[1740599336943,1.9876835,131.87,131.8,221.2012629]
[1740599338274,0.14216157,131.86,131.8,221.2012629]
[1740599339169,0.14216157,131.86,131.8,84.4012629]
[1740599339374,0.14216157,131.84,131.8,84.4012629]
[1740599339873,0.14216157,131.87,131.8,84.4012629]
[1740599340059,0.14216157,131.87,131.8,221.2012629]
[1740599340253,0.14216157,131.85,131.8,221.2012629]
[1740599340853,0.14216157,131.88,131.8,221.2012629]
[1740599341671,4.19284507,131.9,131.8,221.2012629]
[1740599341874,3.19284507,131.9,131.8,221.2012629]
[1740599342474,4.19284507,131.9,131.8,221.2012629]
[1740599342656,1.0,131.88,131.8,221.2012629]
[1740599342858,1.9876835,131.87,131.8,221.2012629]
[1740599343071,2.9876835,131.87,131.8,84.4012629]
[1740599343298,21.9876835,131.87,131.8,84.4012629]
[1740599343576,2.9876835,131.87,131.8,84.4012629]
[1740599343766,1.9876835,131.87,131.8,84.4012629]
[1740599344269,20.0,131.86,131.8,84.4012629]
[1740599345251,21.9876835,131.85,131.8,84.4012629]
[1740599345481,20.0,131.85,131.8,84.4012629]
[1740599345975,84.8876835,131.88,131.8,84.4012629]
[1740599346272,0.14216157,131.87,131.8,221.2012629]
[1740599346658,1.9876835,131.86,131.8,221.2012629]
[1740599346971,0.14216157,131.85,131.8,221.2012629]
[1740599347463,2.12984507,131.85,131.8,221.2012629]
[1740599347664,2.12984507,131.88,131.8,221.2012629]
[1740599349373,2.19284507,131.9,131.8,221.2012629]
[1740599349761,2.0506835,131.9,131.8,221.2012629]
[1740599350166,0.14216157,131.89,131.8,221.2012629]
[1740599350477,20.0,131.89,131.81,1.5249]
[1740599350727,0.063,131.9,131.83,1.0]
[1740599350867,0.063,131.9,131.83,245.54208479]
[1740599351061,0.063,131.9,131.83,219.2]
[1740599351461,0.063,131.9,131.86,20.0]
[1740599351661,1.9876835,131.99,131.87,1.4157]
[1740599351874,82.9,131.98,131.87,220.6157]
[1740599352077,1.9876835,131.97,131.87,220.6157]
[1740599352369,1.9876835,131.99,131.87,220.6157]
[1740599352571,13.29830969,132.05,131.89,1.0]
[1740599352572,82.9,132.02,131.89,1.0]
[1740599352766,82.9,132.03,131.9,6.069]
[1740599352966,2.0506835,132.04,131.91,1.0]
[1740599353158,2.0506835,132.04,131.92,1.0]
[1740599353486,2.0506835,132.04,131.94,2.5229]
[1740599353662,0.063,132.04,131.94,12.9229]
[1740599353978,20.063,132.04,131.94,13.9229]
[1740599354189,20.063,132.04,131.94,12.9229]
[1740599354762,0.31432314,132.03,131.94,13.9229]
[1740599354968,0.03,132.03,131.95,1.0]
[1740599355175,0.03,132.03,131.95,220.2]
[1740599355574,0.03,132.03,131.96,2.0]
[1740599355985,0.03,132.03,131.97,6.0526]
[1740599356258,0.03,132.03,131.98,2.0]
[1740599356475,0.063,132.04,131.99,2.0]
[1740599356665,0.063,132.04,131.99,1.0]
[1740599356864,0.063,132.04,131.98,219.2]
[1740599357281,0.063,132.04,131.99,2.0]
[1740599357577,0.063,132.04,131.98,219.2]
[1740599357776,0.063,132.04,131.98,220.2]
[1740599358113,0.063,132.04,131.98,219.2]
[1740599358683,0.14216157,132.03,131.98,82.4]
[1740599358886,0.14216157,132.01,131.98,82.4]
[1740599359183,0.14216157,132.01,131.96,219.2]
[1740599359777,0.14216157,132.03,131.96,219.2]
[1740599360080,0.28432314,132.01,131.96,219.2]
[1740599360465,2.27200664,132.01,131.96,219.2]
[1740599360876,0.28432314,132.03,131.96,219.2]
[1740599361303,0.14216157,132.01,131.96,219.2]
[1740599361983,0.14216157,132.02,131.96,219.2]
[1740599362204,0.063,132.04,131.96,219.2]
[1740599362684,0.063,132.04,131.96,229.58]
[1740599364382,0.063,132.04,131.96,230.58]
[1740599364568,0.063,132.04,131.98,1.6285]
[1740599365272,0.14216157,132.02,131.98,1.6285]
[1740599365472,0.14216157,132.02,131.98,82.4]
[1740599365676,20.14216157,132.0,131.96,82.4]
[1740599366285,0.063,132.04,131.96,219.2]
[1740599366471,0.20516157,132.04,131.96,219.2]
[1740599366673,0.14216157,132.02,131.96,219.2]
[1740599367393,20.0,132.03,131.96,219.2]
[1740599367590,0.063,132.04,131.96,219.2]
[1740599367977,0.063,132.04,131.97,1.0]
[1740599368187,0.063,132.04,131.98,1.0]
[1740599368494,0.063,132.04,131.98,221.2]
[1740599368675,0.063,132.04,132.0,1.0]
[1740599368878,0.063,132.04,132.01,1.5197]
[1740599369291,0.063,132.04,132.0,219.2]
[1740599370087,0.28432314,132.02,132.0,219.2]
[1740599370274,0.28432314,132.02,132.0,82.4]
[1740599371391,20.28432314,132.02,131.96,219.2]
[1740599373308,0.063,132.04,131.96,219.2]
[1740599373508,0.20516157,132.04,131.96,219.2]
[1740599373801,0.063,132.04,131.96,219.2]
[1740599374101,0.063,132.04,131.97,11.36]
[1740599374281,0.063,132.04,131.97,10.36]
[1740599374592,0.063,132.04,131.99,1.0]
[1740599374790,0.063,132.04,132.0,2.6546]
[1740599375384,0.063,132.04,132.0,1.6546]
[1740599375698,0.063,132.04,132.0,220.8546]
[1740599375892,0.063,132.04,132.0,221.8546]
[1740599376227,0.063,132.04,132.01,1.0]
[1740599377373,0.063,132.04,132.03,6.2964]
[1740599377586,33.506243,132.06,132.03,226.4964]
[1740599378398,33.506243,132.06,132.04,1.0]
[1740599379004,33.506243,132.06,132.03,235.8564]
[1740599379302,33.506243,132.06,132.03,229.56]
[1740599379499,0.03,132.04,132.03,229.56]
[1740599379986,0.03,132.04,132.03,219.2]
[1740599381900,0.03,132.04,132.0,82.4]
[1740599382505,0.28432314,132.02,131.96,219.263]
[1740599383312,0.28432314,132.0,131.96,82.463]
[1740599384308,2.27200664,132.02,131.96,82.463]
[1740599384735,0.14216157,132.01,131.96,82.463]
[1740599385315,0.17216157,132.04,131.96,219.263]
[1740599385510,20.0,132.02,131.96,219.263]
[1740599385704,0.14216157,132.01,131.96,219.263]
[1740599386010,20.0,132.02,131.96,219.263]
[1740599386304,20.0,132.02,131.96,82.463]
[1740599386305,0.14216157,132.01,131.96,82.463]
[1740599386607,1.9876835,132.0,131.96,82.463]
[1740599386994,0.14216157,131.99,131.96,82.463]
[1740599387902,20.0,132.0,131.96,82.463]
[1740599388282,2.0176835,132.04,131.96,82.463]
[1740599388283,2.0176835,132.04,131.96,219.263]
[1740599388490,0.03,132.04,131.96,220.263]
[1740599389014,0.03,132.04,131.97,1.0]
[1740599389206,0.03,132.04,131.98,1.0]
[1740599389414,0.03,132.04,131.97,1.0]
[1740599389704,0.14216157,132.02,131.96,225.3183]
[1740599389897,20.0,132.03,131.96,226.3183]
[1740599390099,0.03,132.04,131.97,1.0]
[1740599390908,0.03,132.04,131.96,225.3183]
[1740599390909,0.14216157,132.02,131.96,225.3183]
[1740599391287,20.0,132.03,131.96,225.3183]
[1740599391723,0.14216157,132.02,131.96,225.3183]
[1740599392918,0.14216157,132.02,131.96,219.263]
[1740599395009,91.6677,132.01,131.96,0.063]
[1740599395208,1.0,131.96,131.89,0.09767642]
[1740599395395,12.3276835,131.95,131.89,0.09767642]
[1740599395589,6.1604,131.93,131.89,0.09767642]
[1740599395912,1.9876835,131.92,131.89,0.09767642]
[1740599397829,8.1480835,131.93,131.89,0.09767642]
[1740599398723,0.28432314,131.95,131.89,0.09767642]
[1740599398895,0.14216157,131.95,131.89,136.89767642]
[1740599399223,6.1833,131.97,131.89,136.89767642]
[1740599399400,0.28432314,131.96,131.89,219.29767642]
[1740599399804,6.1833,131.97,131.89,219.29767642]
[1740599400187,20.0,131.98,131.89,219.29767642]
[1740599400386,2.27200664,131.97,131.89,219.29767642]
[1740599400587,12.3276835,132.0,131.89,219.29767642]
[1740599400909,83.9,131.99,131.89,82.49767642]
[1740599401211,20.28432314,131.95,131.89,0.09767642]
[1740599401513,0.28432314,131.9,131.89,0.09767642]
[1740599402111,20.28432314,131.9,131.89,0.09767642]
[1740599402804,20.14216157,131.9,131.89,0.09767642]
[1740599402987,20.0,131.9,131.87,78.20497259]
[1740599403193,12.3276835,131.93,131.87,78.20497259]
[1740599403499,8.2242835,131.92,131.87,78.20497259]
[1740599404022,12.3276835,131.93,131.87,78.20497259]
[1740599404511,12.3276835,131.93,131.87,215.00497259]
[1740599405199,12.3276835,131.93,131.87,78.20497259]
[1740599405395,95.2276835,131.93,131.84,342.80797259]
[1740599405594,12.3276835,131.93,131.84,342.80797259]
[1740599405794,0.14216157,131.92,131.84,342.80797259]
[1740599406403,1.9876835,131.99,131.86,1.0]
[1740599406616,10.32,131.99,131.87,2.0]
[1740599406915,1.9876835,132.03,131.9,2.0]
[1740599407161,1.9876835,132.03,131.91,1.0]
[1740599407317,82.9,132.02,131.88,78.20497259]
[1740599407616,0.14216157,131.87,131.84,0.063]
[1740599407807,0.14216157,131.85,131.84,0.063]
[1740599408003,20.14216157,131.83,131.82,0.063]
[1740599408620,9.56670664,131.83,131.82,0.063]
[1740599408822,10.56670664,131.83,131.82,0.063]
[1740599409008,8.56670664,131.83,131.82,0.063]
[1740599409412,21.14216157,131.82,131.8,2.0012629]
[1740599409721,2.12984507,131.81,131.8,2.0012629]
[1740599409909,22.12984507,131.81,131.8,2.0012629]
[1740599410395,2.12984507,131.81,131.8,2.0012629]
[1740599410597,0.14216157,131.81,131.8,2.0012629]
[1740599411308,1.9876835,131.84,131.8,2.0012629]
[1740599411513,0.14216157,131.81,131.8,2.0012629]
[1740599411737,2.12984507,131.81,131.8,2.0012629]
[1740599413002,23.27200664,131.81,131.8,1.5941629]
[1740599413725,106.17200664,131.81,131.8,1.5941629]
[1740599414100,105.17200664,131.81,131.8,1.5941629]
[1740599415202,0.14216157,131.77,131.75,0.063]
[1740599415414,12.59200664,131.76,131.75,0.063]
[1740599415917,10.46216157,131.76,131.75,0.063]
[1740599416428,10.60432314,131.76,131.75,0.063]
[1740599416746,1.9876835,131.79,131.75,0.063]
[1740599417025,12.3076835,131.81,131.75,0.063]
[1740599417199,0.14216157,131.8,131.75,0.063]
[1740599417407,1.0,131.85,131.75,0.063]
[1740599417408,12.3076835,131.83,131.75,0.063]
[1740599417905,12.3076835,131.83,131.75,215.06797259]
[1740599418111,10.32,131.84,131.75,215.06797259]
[1740599418327,1.9876835,131.85,131.75,215.06797259]
[1740599418511,1.9876835,131.87,131.75,217.69237259]
[1740599418841,1.9876835,131.87,131.75,216.69237259]
[1740599418842,20.0,131.86,131.75,216.69237259]
[1740599419036,1.9876835,131.85,131.76,1.0]
[1740599419236,1.9876835,131.84,131.76,215.00497259]
[1740599419444,0.14216157,131.83,131.76,215.00497259]
[1740599419622,20.0,131.8,131.75,0.063]
[1740599419962,0.14216157,131.79,131.75,0.063]
[1740599420243,1.9876835,131.78,131.75,0.063]
[1740599420603,20.14216157,131.79,131.75,0.063]
[1740599421011,1.9876835,131.78,131.75,0.063]
[1740599421222,20.14216157,131.79,131.75,0.063]
[1740599421427,0.14216157,131.79,131.75,215.06797259]
[1740599423235,10.32,131.86,131.75,215.06797259]
[1740599423407,84.8876835,131.85,131.75,215.06797259]
[1740599424128,0.14216157,131.84,131.75,215.06797259]
[1740599424430,82.9,131.89,131.77,7.0881]
[1740599424629,1.9876835,131.88,131.77,222.09307259]
[1740599425024,1.9876835,131.89,131.78,1.0]
[1740599425244,12.3076835,131.89,131.78,2.0]
[1740599425425,0.063,131.9,131.81,21.0]
[1740599425617,0.063,131.9,131.81,243.59157259]
[1740599425820,0.20516157,131.9,131.81,236.00497259]
[1740599426329,1.9876835,131.89,131.81,215.00497259]
[1740599426541,0.14216157,131.88,131.81,215.00497259]
[1740599426739,20.0,131.88,131.81,215.00497259]
[1740599426914,21.9876835,131.87,131.81,215.00497259]
[1740599427116,0.14216157,131.85,131.81,78.20497259]
[1740599427342,2.12984507,131.85,131.81,78.20497259]
[1740599427806,0.14216157,131.85,131.81,78.20497259]
[1740599428230,109.46496157,131.85,131.77,78.20497259]
[1740599428426,0.14216157,131.8,131.77,78.20497259]
[1740599429143,20.0,131.81,131.77,78.20497259]
[1740599429450,0.14216157,131.8,131.77,78.20497259]
[1740599429942,20.0,131.84,131.77,215.00497259]
[1740599430318,0.14216157,131.83,131.77,215.00497259]
[1740599430517,0.14216157,131.83,131.77,78.20497259]
[1740599430719,0.14216157,131.81,131.77,78.20497259]
[1740599431223,2.12984507,131.81,131.77,78.20497259]
[1740599432012,1.9876835,131.83,131.77,78.20497259]
[1740599432334,10.32,131.85,131.77,215.00497259]
[1740599432742,16.7428,131.89,131.77,215.00497259]
[1740599432911,8.4104835,131.89,131.77,217.00497259]
[1740599433117,0.063,131.9,131.79,9.8606]
[1740599433455,0.063,131.9,131.8,1.0]
[1740599433616,0.14216157,131.89,131.8,216.00497259]
[1740599433822,0.063,131.9,131.8,217.00497259]
[1740599434141,0.063,131.9,131.82,1.0]
[1740599434330,0.063,131.9,131.82,216.00497259]
[1740599434656,0.063,131.9,131.82,215.00497259]
[1740599434817,0.20516157,131.9,131.82,215.00497259]
[1740599437324,0.063,131.9,131.82,217.00497259]
[1740599437739,0.063,131.9,131.83,1.0]
[1740599437926,0.063,131.9,131.83,216.00497259]
[1740599438733,0.063,131.9,131.83,215.00497259]
[1740599439058,0.063,131.9,131.86,21.0]
[1740599439233,6.3985,132.0,131.89,2.0]
[1740599439431,0.03,132.04,131.98,1.0]
[1740599439744,0.03,132.04,131.98,78.20497259]
[1740599440115,0.17216157,132.04,131.98,78.11397259]
[1740599440353,1.9876835,132.03,131.98,78.11397259]
[1740599440559,0.14216157,132.02,131.98,78.11397259]
[1740599441159,0.03,132.04,131.98,137.8]
[1740599441361,0.03,132.04,132.01,21.0]
[1740599441565,0.03,132.04,132.01,215.91397259]
[1740599441743,0.03,132.04,132.01,216.91397259]
[1740599441927,0.03,132.04,132.01,215.91397259]
[1740599443056,33.506243,132.06,132.03,2.0]
[1740599443255,33.506243,132.06,132.01,215.91397259]
[1740599443653,33.506243,132.06,132.02,1.0]
[1740599444232,23.506443,132.06,132.05,20.0]
[1740599444435,0.03,132.13,132.1,1.0]
[1740599444771,0.03,132.13,132.1,191.40752959]
[1740599446859,0.03,132.13,132.1,54.60752959]
[1740599449251,0.14216157,132.11,132.05,191.40752959]
[1740599449457,0.14216157,132.11,132.05,54.60752959]
[1740599449771,7.94655585,132.12,132.05,54.60752959]
[1740599449933,5.95887235,132.12,132.05,191.40752959]
[1740599450134,0.03,132.13,132.05,191.40752959]
[1740599452442,0.03,132.13,132.05,192.40752959]
[1740599452660,0.03,132.13,132.05,191.40752959]
[1740599452847,0.14216157,132.12,132.05,191.40752959]
[1740599454172,20.0,132.08,132.05,54.60752959]
[1740599455244,0.14216157,132.07,132.05,54.60752959]
[1740599455434,20.0,132.04,132.0,191.40752959]
[1740599455948,6.64516157,132.07,132.0,191.40752959]
[1740599456452,6.503,132.07,132.0,191.40752959]
[1740599456648,0.14216157,132.1,132.0,191.40752959]
[1740599457332,7.5849,132.11,132.0,191.40752959]
[1740599457538,7.5849,132.11,132.0,193.40752959]
[1740599459368,6.0787,132.11,132.01,3.87419314]
[1740599460170,6.0787,132.11,132.0,220.00203641]
[1740599460365,6.0787,132.11,132.01,3.73201905]
[1740599460567,6.0787,132.11,132.02,0.14216157]
[1740599460874,6.0787,132.11,132.02,1.14216157]
[1740599461250,5.8787,132.11,132.02,1.14216157]
[1740599461792,5.8787,132.11,132.01,1.0]
[1740599462067,5.8787,132.11,132.0,196.25203641]
[1740599462274,20.0,132.08,132.0,191.40752959]
[1740599462636,23.66114507,132.07,132.0,54.60752959]
[1740599462843,30.26,132.06,132.0,54.60752959]
[1740599463382,2.12984507,132.05,132.0,54.63752959]
[1740599463962,85.02984507,132.05,132.0,0.03]
[1740599464275,0.14216157,132.01,131.92,54.63752959]
[1740599464572,0.14216157,131.99,131.92,191.43752959]
[1740599464983,1.9876835,131.98,131.92,191.43752959]
[1740599465563,82.9,132.0,131.92,191.43752959]
[1740599465761,0.14216157,131.99,131.92,191.43752959]
[1740599466273,1.78836157,131.97,131.92,0.03]
[1740599466534,10.26,131.96,131.92,0.03]
[1740599466956,1.6462,131.97,131.92,191.43752959]
[1740599467151,19.9917835,132.02,131.92,191.43752959]
[1740599467356,0.14216157,131.97,131.92,54.63752959]
[1740599467587,0.14216157,131.95,131.92,0.03]
[1740599468680,30.26,131.96,131.92,0.03]
[1740599469087,0.14216157,131.94,131.92,0.03]
[1740599469555,2.70656157,131.92,131.87,0.03]
[1740599469756,20.14216157,131.88,131.87,0.03]
[1740599469981,32.38984507,131.88,131.87,0.03]
[1740599470386,116.28984507,131.88,131.87,0.03]
[1740599470605,0.14216157,131.87,131.8,54.60752959]
[1740599470790,0.14216157,131.85,131.8,54.60752959]
[1740599471174,0.14216157,131.86,131.8,191.40752959]